[Event "Czech Open-GM 2022"]
[Site "Pardubice"]
[Date "2022.07.24"]
[Round "3.2"]
[White "Stachowiak, Kamil"]
[Black "Kusa, Jakub"]
[Result "1-0"]
[ECO "D37"]
[WhiteElo "2476"]
[BlackElo "2353"]
[Annotator "TA"]
[PlyCount "97"]
[EventDate "2022.07.22"]
[EventType "swiss"]
[EventCountry "CZE"]
[SourceTitle "playchess.com"]
[Source "ChessBase"]
[SourceQuality "1"]
[TimeControl "40/5400+30:1800+30"]

{[%evp 22,97,8,0,2,0,0,-23,-25,-29,-35,-23,9,5,10,4,4,1,4,8,85,96,135,110,218,218,222,214,212,224,344,346,309,204,198,200,200,200,200,200,204,206,199,200,245,249,275,274,272,254,303,310,522,367,370,366,401,401,398,402,457,457,604,571,638,629,602,595,709,710,710,706,702,699,687,674,665,643]} 1. d4 {[%emt 0:00:02]} Nf6 {[%emt 0:00:19]} 2. Nf3 {[%emt 0:00:18]} e6 {[%emt 0:00:21]} 3. c4 {[%emt 0:00:31]} d5 {[%emt 0:00:14]} 4. Nc3 {[%emt 0:00:10]} Be7 {[%emt 0:00:54]} 5. Bg5 {[%emt 0:00:18][%cal Bc1g5,Bg5h4,Bh4g3][%mdl 32]} Nbd7 {[%emt 0:01:06]} 6. e3 {[%emt 0:00:22]} h6 {[%emt 0:00:47]} 7. Bh4 {[%emt 0:00:07]} O-O {[%emt 0:00:48]} 8. cxd5 {[%emt 0:00:24]} Nxd5 {[%emt 0:00:29]} 9. Bg3 {[%emt 0:01:38]} Nxc3 {[%emt 0:04:46]} 10. bxc3 {[%emt 0:00:41]} b6 {[%emt 0:06:14][%cal Bb7b6,Bb6b5,Bb5b4][%mdl 32]} 11. Bd3 {[%emt 0:05:52]} Bb7 {[%emt 0:00:41]} 12. O-O {[%emt 0:00:43]} Nf6 {[%emt 0:03:56] D58: Queen's Gambit Declined: Tartakower Defence.} 13. Nd2 {[%emt 0:25:24]} c5 {[%emt 0:08:49] [#]} 14. Qa4 $146 {[%emt 0:13:20]} ({Predecessor:} 14. Rc1 Qd7 15. Be5 cxd4 16. cxd4 Rfc8 17. Qe2 Rxc1 18. Rxc1 Rc8 19. Rf1 Qd8 20. f4 {½-½ (36) Siradze,S (2069)-Francis,O (1698) Kazan 2013}) 14... a6 {[%emt 0:11:24] Black has an edge.} 15. Rfc1 {[%emt 0:03:51]} b5 {[%emt 0:08:54]} 16. Qd1 {[%emt 0:00:25]} b4 {[%emt 0:01:40]} 17. Nb3 {[%emt 0:14:05]} bxc3 {[%emt 0:06:50]} 18. Nxc5 {[%emt 0:02:54]} Bxc5 {[%emt 0:01:40]} 19. dxc5 {[%emt 0:00:11] Hoping for Bd6.} Qd5 {[%emt 0:02:08][%csl Gb7,LRc5,LRg2][%cal Rd5g2] [#]} 20. Bf1 {[%emt 0:00:49] Threatens to win with Qxd5. This bishop pair is nice.} ({Reject} 20. Qf3 Qxd3 21. Qxb7 Rfc8 $15) 20... Ne4 {[%emt 0:04:32]} (20... Qxc5 $2 21. Bd6 Qc6 22. Bxf8 Rxf8 23. Qd4 $18) (20... Qxd1 $11 {keeps the balance.} 21. Rxd1 Ne4) 21. Qxd5 $16 {[%emt 0:02:27] White leaves nothing to chance now.} exd5 {[%emt 0:03:47]} 22. f3 {[%emt 0:09:10]} Nd2 {[%emt 0:05:22]} (22... Nxg3 $16 23. hxg3 Bc6) 23. Be2 $18 {[%emt 0:03:13]} Rfe8 {[%emt 0:06:04]} 24. Kf2 {[%emt 0:00:21]} Bc6 {[%emt 0:01:55]} 25. Rxc3 {[%emt 0:00:32][%cal Bc1c3,Bc3d3,Bd3d5,Bd5b5,Bb5b3][%mdl 32]} Bb5 {[%emt 0:00:16]} (25... f5 $142 26. Rd1 Nc4 27. Bxc4 dxc4 28. Rxc4 Re7) 26. Bxb5 {[%emt 0:04:13]} axb5 {[%emt 0:00:01]} 27. Rd3 {[%emt 0:00:16]} Nc4 {[%emt 0:00:06]} 28. c6 {[%emt 0:00:12]} ({But not} 28. Rxd5 Nxe3 29. Rd7 Nc2 $16) 28... Ne5 {[%emt 0:01:55]} 29. Rxd5 {[%emt 0:02:36]} Nxc6 {[%emt 0:00:05]} 30. Rxb5 {[%emt 0:00:07]} Ra3 {[%emt 0:03:56]} 31. Rb3 {[%emt 0:00:12]} Ra4 {[%emt 0:01:02]} 32. a3 {[%emt 0:00:36]} Ne5 {[%emt 0:01:45]} 33. Rc1 {[%emt 0:01:07]} Ra5 {[%emt 0:01:35]} 34. Rc7 {[%emt 0:02:17]} Rd8 {[%emt 0:01:45]} 35. Ke2 {[%emt 0:02:16] Against Rd2+} Rad5 {[%emt 0:02:41]} 36. Rc2 {[%emt 0:00:31] Inhibits Rd2+.} Nd3 $2 {[%emt 0:02:27]} (36... Ra8 37. e4 Rda5) 37. Rb8 {[%emt 0:01:18]} Rxb8 {[%emt 0:01:15]} 38. Bxb8 {[%emt 0:00:02][%mdl 4096] Endgame KRB-KRN} Nc5 {[%emt 0:00:31]} 39. e4 {[%emt 0:01:59][%cal Be3e4,Be4e5][%mdl 32]} Rg5 {[%emt 0:00:13]} 40. Ke3 {[%emt 0:00:23]} Ne6 {[%emt 0:00:51]} 41. e5 {[%emt 0:30:18] White is clearly winning.} Rh5 {[%emt 0:32:36]} 42. a4 {[%emt 0:02:15][%cal Ba3a4,Ba4a5,Ba5a6][%mdl 32]} Rxh2 {[%emt 0:00:21]} 43. a5 {[%emt 0:00:14]} Rh1 {[%emt 0:00:33]} 44. Ra2 {[%emt 0:00:29] [#] Against Ra1. And now a6 would win.} Re1+ {[%emt 0:02:30]} 45. Kf2 {[%emt 0:01:20]} Rb1 {[%emt 0:00:39]} 46. Bd6 {[%emt 0:00:06] Black must now prevent a6.} Rb7 {[%emt 0:00:47]} 47. a6 {[%emt 0:00:33]} Ra7 {[%emt 0:00:06]} 48. Ke3 {[%emt 0:00:09]} Ra8 {[%emt 0:02:17]} 49. Ke4 {[%emt 0:00:33] Weighted Error Value: White=0.11 (very precise) /Black=0.35} 1-0

[Event "Czech Open-GM 2022"]
[Site "Pardubice"]
[Date "2022.07.24"]
[Round "3.3"]
[White "Brodowski, Piotr"]
[Black "Vojta, Jakub"]
[Result "1-0"]
[ECO "A04"]
[WhiteElo "2450"]
[BlackElo "2326"]
[Annotator "TA"]
[PlyCount "69"]
[EventDate "2022.07.22"]
[EventType "swiss"]
[EventCountry "CZE"]
[SourceTitle "playchess.com"]
[Source "ChessBase"]
[SourceQuality "1"]
[TimeControl "40/5400+30:1800+30"]

{[%evp 10,69,2,-25,-14,-32,-29,-35,-26,-28,-2,-25,-12,-9,6,7,27,31,10,37,46,25,17,47,77,85,95,87,82,76,252,244,253,251,249,244,233,248,250,250,290,273,275,235,335,302,357,340,562,485,659,745,906,899,942,945,1679,1635,29989,29990,29989,3343]} 1. Nf3 {[%emt 0:00:05]} c5 {[%emt 0:03:32]} 2. c4 {[%emt 0:00:11]} Nc6 {[%emt 0:00:09]} 3. Nc3 {[%emt 0:00:07]} g6 {[%emt 0:04:46]} 4. d4 {[%emt 0:03:27]} cxd4 {[%emt 0:00:07]} 5. Nxd4 {[%emt 0:00:12]} Bg7 {[%emt 0:00:12]} 6. Nb3 {[%emt 0:05:09]} d6 {[%emt 0:06:27] A35: Symmetrical English: 2 Nc3 Nc6 3 Nf3.} 7. g3 {[%emt 0:12:47]} Be6 {[%emt 0:04:05]} 8. Nd5 {[%emt 0:01:19]} Nf6 {Black is slightly better.} 9. Bg2 {[%emt 0:01:18]} O-O {[%emt 0:03:08]} 10. O-O {[%emt 0:03:06]} Rc8 {[%emt 0:00:11]} 11. Bg5 {[%emt 0:14:51]} Nd7 {[%emt 0:19:22]} 12. Qd2 {[%emt 0:00:46]} Bxd5 {[%emt 0:08:28]} 13. cxd5 {[%emt 0:01:55]} Nce5 {[%emt 0:00:06][%cal Bc6e5,Be5c4,Bc4b2][%mdl 32] [#]} 14. Rac1 $146 {[%emt 0:01:16]} ({Predecessor:} 14. Qb4 h6 15. Be3 Nc4 16. Bd4 Bxd4 17. Nxd4 Qb6 18. Qxb6 Ncxb6 19. Rfc1 a6 20. b3 Rfd8 21. Kf1 Ne5 22. Ke1 {½-½ (22) Gousseinov,E-Kovchan,A (2350) Istanbul 1998}) 14... Nc4 {[%emt 0:15:06]} 15. Qb4 {[%emt 0:00:11][%csl LRb7,LRc4]} (15. Qf4 $5 {[%cal Rc1c4]} Ndb6 16. Nd4 $11) 15... Ndb6 {[%emt 0:00:04]} 16. Na5 {[%emt 0:01:27]} Nxb2 {[%emt 0:06:23]} 17. Nxb7 {[%emt 0:11:08] White is more active.} Qd7 {[%emt 0:00:19]} 18. Na5 {[%emt 0:00:07]} h6 {[%emt 0:03:15]} 19. Be3 {[%emt 0:01:30] This bishop pair is nice.} N6a4 $2 {[%emt 0:07:25] [#] Loses the game.} (19... Qa4 $16 20. Qxa4 N2xa4) 20. Nc6 $18 {[%emt 0:03:37]} Rc7 {[%emt 0:00:02]} 21. Rc2 {[%emt 0:11:48]} Rb7 {[%emt 0:01:43]} 22. Qd2 {[%emt 0:01:46]} Kh7 {[%emt 0:00:48]} 23. Bd4 {[%emt 0:02:47]} Bxd4 {[%emt 0:02:42]} 24. Qxd4 {[%emt 0:00:11]} ({But not} 24. Nxd4 $6 Rc8 25. Nc6 Rcc7) 24... Qf5 {[%emt 0:02:55]} 25. e4 {[%emt 0:02:38][%cal Be2e4,Be4e5][%mdl 32]} Qf6 {[%emt 0:00:15]} 26. Qd2 {[%emt 0:00:31]} Rc8 {[%emt 0:02:22]} (26... Qg7 $142 27. e5 dxe5) 27. f4 {[%emt 0:00:48]} Rcc7 {[%emt 0:01:55]} 28. Bh3 {[%emt 0:06:52] [#] aiming for e5.} Qh8 {[%emt 0:04:10]} (28... Qg7 29. f5 g5) 29. e5 {[%emt 0:01:00] Hoping for f5.} f5 {[%emt 0:00:50]} 30. g4 {[%emt 0:00:59]} fxg4 {[%emt 0:00:08]} 31. Bxg4 {[%emt 0:00:07]} Qg7 {[%emt 0:01:51]} 32. Kh1 {[%emt 0:01:01]} Rb5 {[%emt 0:02:02]} 33. f5 {[%emt 0:00:44][%cal Bf4f5,Bf5g6][%mdl 32]} dxe5 {[%emt 0:01:24]} 34. fxg6+ {[%emt 0:00:36]} Kh8 {[%emt 0:00:03]} 35. Be6 {[%emt 0:01:19] Weighted Error Value: White=0.08 (flawless) /Black=0.63} (35. d6 $142 Rxc6 36. d7 Rxg6 37. d8=Q+ Kh7 38. Bf5 Rb8 39. Qxb8 Nc5 40. Qe8) 1-0

[Event "Czech Open-GM 2022"]
[Site "Pardubice"]
[Date "2022.07.24"]
[Round "3.4"]
[White "Dixit, Nikhil"]
[Black "Pantzar, Milton"]
[Result "1/2-1/2"]
[ECO "B11"]
[WhiteElo "2325"]
[BlackElo "2447"]
[Annotator "TA"]
[PlyCount "61"]
[EventDate "2022.07.22"]
[EventType "swiss"]
[EventCountry "CZE"]
[SourceTitle "playchess.com"]
[Source "ChessBase"]
[SourceQuality "1"]
[TimeControl "40/5400+30:1800+30"]

{[%evp 11,61,15,16,17,18,17,20,18,12,2,12,5,9,6,9,0,0,0,7,0,0,0,0,0,31,31,63,64,64,60,47,29,29,34,62,56,65,58,114,104,162,132,109,83,94,89,100,0,0,0,0,0]} 1. e4 {[%emt 0:05:48]} c6 {[%emt 0:00:12]} 2. Nc3 {[%emt 0:01:28]} d5 {[%emt 0:00:20]} 3. Nf3 {[%emt 0:00:04]} Bg4 {[%emt 0:00:42]} 4. h3 {[%emt 0:00:29]} Bxf3 {[%emt 0:00:19]} 5. Qxf3 {[%emt 0:00:31]} e6 {[%emt 0:00:25]} 6. d4 {[%emt 0:06:42]} Nf6 {[%emt 0:02:54]} 7. exd5 {[%emt 0:11:28] B11: Caro-Kann: Two Knights Variation.} cxd5 {[%emt 0:02:31]} 8. Bd3 {[%emt 0:00:06]} Nc6 {[%emt 0:01:36]} 9. Ne2 {[%emt 0:00:20]} h6 {[%emt 0:04:18]} 10. O-O {[%emt 0:01:25]} Bd6 {[%emt 0:02:10]} 11. c3 {[%emt 0:03:07]} O-O {[%emt 0:03:21]} 12. Ng3 {[%emt 0:01:23]} (12. Nf4 {is interesting.} Re8 13. Nh5 Nxh5 14. Qxh5 e5 15. dxe5 Bxe5 16. Qf5) 12... Re8 {[%emt 0:03:46] [#]} 13. Bf4 $146 {[%emt 0:03:42]} (13. Nh5 {feels hotter.} Nxh5 14. Qxh5 Qf6 15. Bd2) ({Predecessor:} 13. Bd2 e5 14. Nh5 Nxh5 15. Qxh5 e4 16. Bc2 Bc7 17. Rae1 Qd6 18. g3 Rad8 19. Bb3 {0-1 (65) Skawinski,A (2358)-Livaic,L (2514) Pardubice 2021}) 13... Bxf4 {[%emt 0:03:02]} 14. Qxf4 {[%emt 0:00:43]} Rb8 {[%emt 0:14:02]} 15. a4 {[%emt 0:03:36]} Qb6 {[%emt 0:03:49]} 16. Qd2 {[%emt 0:06:58]} Na5 {[%emt 0:07:26]} 17. Rae1 {[%emt 0:01:14][%cal Ba1e1,Be1e3,Be3f3,Bf3g3][%mdl 32]} Qb3 {[%emt 0:06:02]} 18. Re3 {[%emt 0:05:12]} Nc4 {[%emt 0:13:44]} (18... Qxa4 19. Rf3 Ne4 20. Bxe4 (20. Nxe4 dxe4 21. Bxe4 Nc4 $16) 20... dxe4 21. Nxe4 $16) 19. Bxc4 {[%emt 0:01:39]} Qxc4 {[%emt 0:00:10]} 20. Rf3 $1 {[%emt 0:02:47][%cal Of3f6]} Ne4 {[%emt 0:03:41]} (20... Qxa4 $2 21. Rxf6 $1 {[%mdl 512]} Qd7 22. Nh5 $1 $18) 21. Nxe4 {[%emt 0:13:01]} dxe4 {[%emt 0:00:07]} 22. Rg3 {[%emt 0:00:08] aiming for Qxh6.} Kh7 {[%emt 0:06:18]} 23. Qf4 $36 {[%emt 0:03:49][%csl LRe4,LRf7][%mdl 2048] White fights for an advantage.} f5 {[%emt 0:01:28]} 24. Qe5 {[%emt 0:04:13][%csl Gg3][%cal Re5g7]} g6 {[%emt 0:05:05]} (24... Rg8 $14) 25. f3 $16 {[%emt 0:04:44][%cal Bf2f3,Bf3e4][%mdl 32]} (25. Qf6 Rg8 $14) 25... b5 {[%emt 0:08:15]} (25... exf3 $16 26. Rfxf3 (26. Qf6 Rg8 $14) 26... Rg8) 26. fxe4 {[%emt 0:03:43][%cal Ob2b3] Strongly threatening b3!} ({Much less strong is} 26. Qf6 Rg8 $16) 26... bxa4 {[%emt 0:00:36]} 27. Rf4 {[%emt 0:03:39] Intending Rh4 and mate.} ({Much worse is} 27. exf5 $6 exf5 28. Qd6 Qf7 $11) 27... Rg8 {[%emt 0:03:25]} 28. Rh4 {[%emt 0:05:45] White threatens exf5 and mate.} g5 {[%emt 0:01:28] [#]} 29. Qf6 $1 {[%emt 0:03:57]} gxh4 $11 {[%emt 0:01:14]} (29... Rg6 30. Qf7+) 30. Qf7+ {[%emt 0:00:38]} Kh8 {[%emt 0:00:07]} 31. Qf6+ {[%emt 0:00:32] Weighted Error Value: White=0.08 (flawless) /Black=0.10 (very precise)} 1/2-1/2

[Event "Czech Open-GM 2022"]
[Site "Pardubice"]
[Date "2022.07.24"]
[Round "3.5"]
[White "Paseka, Matyas"]
[Black "Moksh Amit Doshi"]
[Result "0-1"]
[ECO "B90"]
[WhiteElo "2218"]
[BlackElo "2409"]
[Annotator "TA"]
[PlyCount "76"]
[EventDate "2022.07.22"]
[EventType "swiss"]
[EventCountry "CZE"]
[SourceTitle "playchess.com"]
[Source "ChessBase"]
[SourceQuality "1"]
[TimeControl "40/5400+30:1800+30"]

{[%evp 24,76,19,4,23,23,11,0,0,0,8,0,14,-76,-75,-74,-36,-106,-99,-97,-87,-98,-104,-96,-102,-108,-96,-125,-70,-70,-73,-73,-77,-94,-86,-78,-62,-236,-253,-239,-240,-230,-242,-482,-472,-380,-391,-720,-692,-866,-840,-1441,-1600,-5098,-2066]} 1. e4 c5 {[%emt 0:05:30]} 2. Nf3 {[%emt 0:00:13]} d6 {[%emt 0:00:35]} 3. d4 {[%emt 0:00:08]} cxd4 {[%emt 0:00:05]} 4. Nxd4 {[%emt 0:00:06]} Nf6 {[%emt 0:00:12]} 5. Nc3 {[%emt 0:00:07]} a6 {[%emt 0:00:04]} 6. Be3 {[%emt 0:00:08]} e5 {[%emt 0:00:18]} 7. Nb3 {[%emt 0:00:07]} Be6 {[%emt 0:00:55]} 8. f3 {[%emt 0:00:21]} Be7 {[%emt 0:00:35]} 9. Qd2 {[%emt 0:00:12]} O-O {[%emt 0:00:12]} 10. O-O-O {[%emt 0:00:12]} Nbd7 {[%emt 0:00:05]} 11. g4 {[%emt 0:00:10][%cal Bg2g4,Bg4g5][%mdl 32]} b5 {[%emt 0:00:05]} 12. g5 {[%emt 0:00:10]} Nh5 $1 {[%emt 0:00:06][%cal Bf6h5,Bh5f4,Bf4d3][%mdl 4] now scores much better than the old 12...b4.} 13. Nd5 {[%emt 0:00:14]} Bxd5 {[%emt 0:09:49] B90: Sicilian Najdorf: Unusual White 6th moves, 6 Be3 Ng4 and 6 Be3 e5.} 14. exd5 {[%emt 0:00:10]} f6 {[%emt 0:00:17][%cal Rf6g5]} 15. gxf6 {[%emt 0:00:10]} Bxf6 {[%emt 0:01:48] The position is equal.} 16. Na5 {[%emt 0:02:02]} Nf4 {[%emt 0:02:28]} 17. Nc6 {[%emt 0:15:32]} Qe8 {[%emt 0:04:06]} 18. Bd3 {[%emt 0:25:30] [#]} (18. Qb4 $11) 18... Nxd3+ $146 {[%emt 0:06:05]} ({Predecessor:} 18... Bg5 19. Kb1 Kh8 20. Be4 Nf6 21. Rhg1 Bh6 22. Bxf4 Bxf4 23. Qb4 Qd7 24. a4 Be3 {0-1 (59) Martinez Fernandez,A (2268)-Esipenko,A (2589) Barcelona 2018}) 19. Qxd3 {[%emt 0:00:11]} Qh5 {[%emt 0:00:20]} 20. Rhg1 {[%emt 0:01:18] Against Bg5} (20. h4 $1 $15) 20... Qxf3 {[%emt 0:05:23]} 21. Rdf1 {[%emt 0:00:44]} e4 {[%emt 0:02:08]} 22. Rxf3 {[%emt 0:08:16]} exd3 {[%emt 0:02:42]} 23. c3 {[%emt 0:00:14]} Rae8 {[%emt 0:07:20][%cal Of6c3]} 24. Rfg3 {[%emt 0:08:30]} Rf7 {[%emt 0:08:55] Strongly threatening ...Bh4.} 25. Kd2 {[%emt 0:17:36]} Bh4 {[%emt 0:05:47]} (25... Be5 $17 26. R3g2 g6) 26. Rh3 $15 {[%emt 0:07:49]} Bf2 {[%emt 0:03:36]} 27. Rg2 {[%emt 0:00:16] [#]} Nf6 $1 {[%emt 0:00:30][%cal Of6d5] The board is on fire.} 28. Kxd3 {[%emt 0:05:49] [#]} (28. Nb4 Re5) 28... Nxd5 $1 {[%emt 0:00:40]} 29. Bd2 {[%emt 0:00:16]} Be1 $36 {[%emt 0:02:25][%mdl 2048] Hoping for ...Bxd2. Black is pushing. Black is more active.} 30. Re2 {[%emt 0:01:56] Now White is beyond hope.} (30. Kc2 $15) 30... Rxe2 $19 {[%emt 0:00:48]} 31. Kxe2 {[%emt 0:00:07]} Bxd2 {[%emt 0:00:05]} 32. Kxd2 {[%emt 0:00:05][%mdl 4096] Endgame KRN-KRN} Rf2+ {[%emt 0:00:06]} 33. Kc1 $2 {[%emt 0:00:08]} (33. Ke1 Rxb2 34. Rd3 Rb1+ 35. Kd2) 33... Nf4 {[%emt 0:00:05]} 34. Re3 {[%emt 0:01:17]} Rxh2 {[%emt 0:00:07]} 35. Nb4 $2 {[%emt 0:03:00]} (35. Re8+ Kf7 36. Re7+ Kf8 37. Ra7) 35... h5 {[%emt 0:03:14][%cal Bh7h5,Bh5h4][%mdl 32] Black is clearly winning.} 36. Nxa6 {[%emt 0:01:30]} h4 {[%emt 0:00:05] White must now prevent ...h3.} 37. c4 {[%emt 0:00:50]} bxc4 {[%emt 0:00:10]} 38. a4 {[%emt 0:00:19]} Nd3+ {[%emt 0:00:08] Weighted Error Value: White=0.96/Black=0.04 (flawless)} 0-1

[Event "Czech Open-GM 2022"]
[Site "Pardubice"]
[Date "2022.07.24"]
[Round "3.6"]
[White "Klabis, Rokas"]
[Black "Gnojek, Petr"]
[Result "0-1"]
[ECO "B81"]
[WhiteElo "2382"]
[BlackElo "2295"]
[Annotator "TA"]
[PlyCount "66"]
[EventDate "2022.07.22"]
[EventType "swiss"]
[EventCountry "CZE"]
[SourceTitle "playchess.com"]
[Source "ChessBase"]
[SourceQuality "1"]
[TimeControl "40/5400+30:1800+30"]

{[%evp 12,66,53,52,78,55,56,31,44,52,55,50,59,47,85,96,168,148,245,281,261,231,268,154,175,0,19,6,294,241,368,397,270,56,33,-49,211,80,75,0,129,-377,-57,-373,-212,-200,-218,-507,-504,-499,-503,-506,-543,-523,-517,-29997,-29998]} 1. e4 {[%emt 0:00:03]} c5 {[%emt 0:00:06]} 2. Nf3 {[%emt 0:00:30]} e6 {[%emt 0:00:15]} 3. d4 {[%emt 0:00:19]} cxd4 {[%emt 0:00:07]} 4. Nxd4 {[%emt 0:00:04]} Nf6 {[%emt 0:00:05]} 5. Nc3 {[%emt 0:01:18]} d6 {[%emt 0:00:10]} 6. g4 {[%emt 0:00:11]} h6 {[%emt 0:00:05]} 7. Rg1 {[%emt 0:00:29]} g5 {[%emt 0:00:16] B81: Sicilian Scheveningen: Keres Attack.} 8. Be3 {[%emt 0:02:33][%cal Oh2h4]} (8. h4 $5) 8... a6 {[%emt 0:00:17]} 9. Qf3 {[%emt 0:08:10]} Nbd7 {[%emt 0:01:08] White is slightly better.} 10. O-O-O {[%emt 0:02:37][%cal Oh2h4]} Be7 {[%emt 0:06:48] [#]} 11. Be2 $146 {[%emt 0:03:41]} ({Predecessor:} 11. h4 Rg8 12. hxg5 hxg5 13. Qh3 Ne5 14. Bxg5 Rxg5 15. f4 Rxg4 16. fxe5 Rxg1 17. exf6 Bxf6 {½-½ (41) Getz,A (2321)-Arnold,M (2529) Saint Louis 2012}) 11... Qc7 {[%emt 0:03:02]} 12. h4 {[%emt 0:10:26]} gxh4 {[%emt 0:00:16]} 13. Qh1 {[%emt 0:00:04]} Nc5 {[%emt 0:22:52]} (13... Ng8 $16) 14. f4 $1 $18 {[%emt 0:06:02]} b5 {[%emt 0:02:19]} (14... e5 $16 {was worth a try.}) 15. g5 $1 {[%emt 0:11:00]} hxg5 {[%emt 0:00:09]} 16. fxg5 {[%emt 0:00:03]} Nh7 {[%emt 0:14:31]} (16... Nfd7 17. g6 Ne5 18. gxf7+ (18. g7 Rg8 $11) 18... Nxf7 19. Rdf1 (19. Rg7 Bf8 $14)) 17. a3 {[%emt 0:06:22]} (17. Qxh4 b4 18. Nd5 (18. Nb1 Bb7 $14) 18... exd5 $16) (17. g6 $18 fxg6 18. Rxg6) 17... Nf8 {[%emt 0:02:29] [#]} 18. g6 $2 {[%emt 0:14:47]} (18. Nf5 $1 $18 {[%mdl 512]}) 18... Nxg6 $11 {[%emt 0:09:59] Hoping for ...Bb7.} 19. Nf5 $1 {[%emt 0:04:00]} Bd7 {[%emt 0:11:17][%mdl 8192]} (19... exf5 $11 {and Black stays safe.} 20. exf5 Bxf5 21. Qxa8+ Qc8) 20. Rxg6 {[%emt 0:08:49][%mdl 64] Remove Defender} fxg6 {[%emt 0:00:07]} (20... exf5 $142 21. e5 Bc6) 21. Nxe7 $18 {[%emt 0:00:03]} Kxe7 {[%emt 0:00:08]} 22. Bg5+ $2 {[%emt 0:00:10]} (22. e5 $1 $18 {[%cal Re5d6]} d5 23. Qg1) 22... Ke8 $14 {[%emt 0:01:15]} 23. Bf6 {[%emt 0:06:03]} (23. e5 $14 d5 24. Bf6) 23... Rg8 $2 {[%emt 0:01:01][%mdl 8192]} (23... Rh7 $15 {stays ahead.} 24. e5 Bc6) 24. Qh2 {[%emt 0:01:32]} (24. b4 $18 Nb7 25. Qxh4) 24... Rc8 {[%emt 0:04:57][%cal Oc5e4] ...Nxe4! is the strong threat.} 25. Bf3 {[%emt 0:02:56] This bishop pair is nice.} (25. e5 $16 d5 26. Qxh4) 25... a5 {[%emt 0:02:43]} (25... Na4 $11 {remains equal.}) 26. b4 $2 {[%emt 0:04:32][%mdl 8192]} (26. Qxh4 $16 {stays on course. Qh7 would kill now.} Bc6 27. Be2) 26... axb4 $2 {[%emt 0:00:06]} ({Black should try} 26... Rf8 $19 27. Qxh4 Nb3+ $1 {[%mdl 512]} 28. Kb1 Rxf6 $1 {[%mdl 512]} 29. Qxf6 Qxc3 30. Qxc3 Rxc3) 27. axb4 $2 {[%emt 0:00:03][%mdl 8192] [#]} (27. Qxh4 $15 Bc6 28. axb4) 27... Nb3+ $1 {[%emt 0:02:24]} 28. Kb2 $19 {[%emt 0:00:59]} Rf8 {[%emt 0:00:05]} ({Worse is} 28... e5 29. Nd5 Qa7 30. cxb3 $11) 29. Qxh4 {[%emt 0:00:07] [#]} (29. Rd3 Nd2 30. Qxh4 Nc4+ 31. Kb1) 29... e5 $1 {[%emt 0:00:05]} 30. Rd3 {[%emt 0:00:12]} Nd4 {[%emt 0:00:27]} 31. Bh5 {[%emt 0:02:12]} Be6 {[%emt 0:01:45]} ({Weaker is} 31... gxh5 32. Qxh5+ Rf7 33. Qh8+ Rf8 34. Qh5+ Rf7 35. Qh8+ Rf8 36. Qh5+ $11) 32. Bxg6+ {[%emt 0:00:04] [#]} Kd7 $1 {[%emt 0:00:03] aiming for ...Qc4.} 33. Rxd4 {[%emt 0:05:36]} (33. Qh7+ $19 Kc6 34. Qxc7+ Rxc7 35. Bh4) 33... Qxc3+ {[%emt 0:00:05] What a bad dream for White.  Weighted Error Value: White=0.94/Black=0.81} 0-1

[Event "Czech Open-GM 2022"]
[Site "Pardubice"]
[Date "2022.07.24"]
[Round "3.7"]
[White "Dubinski, Mateusz"]
[Black "Niedbala, Bartlomiej"]
[Result "1/2-1/2"]
[ECO "E04"]
[WhiteElo "2206"]
[BlackElo "2381"]
[Annotator "TA"]
[PlyCount "53"]
[EventDate "2022.07.22"]
[EventType "swiss"]
[EventCountry "CZE"]
[SourceTitle "playchess.com"]
[Source "ChessBase"]
[SourceQuality "1"]
[TimeControl "40/5400+30:1800+30"]

{[%evp 11,53,18,29,15,20,20,19,14,16,15,12,8,16,10,32,11,12,0,9,-12,14,8,35,14,23,0,8,0,0,3,12,0,-10,0,0,0,40,23,47,20,16,17,6,22]} 1. d4 {[%emt 0:00:03]} Nf6 {[%emt 0:00:09]} 2. c4 {[%emt 0:00:07]} e6 {[%emt 0:00:05]} 3. g3 {[%emt 0:00:07]} d5 {[%emt 0:00:24]} 4. Bg2 {[%emt 0:00:20]} dxc4 {[%emt 0:01:46]} 5. Nf3 {[%emt 0:00:29]} Bb4+ {[%emt 0:00:07]} 6. Bd2 {[%emt 0:00:18]} a5 {[%emt 0:00:15]} 7. a3 {[%emt 0:01:00] E04: Open Catalan: 5 Nf3.} Bxd2+ {[%emt 0:04:37]} 8. Nbxd2 {[%emt 0:01:07]} b5 {[%emt 0:00:54]} 9. b3 $1 {[%emt 0:08:58]} cxb3 {[%emt 0:01:01]} 10. Qxb3 {[%emt 0:03:48]} c6 {[%emt 0:02:19]} 11. O-O {[%emt 0:02:14][%mdl 1024] White has compensation.} O-O {[%emt 0:02:08]} 12. Rfc1 {[%emt 0:05:30]} Bd7 {[%emt 0:08:02]} 13. Ne5 {[%emt 0:05:48]} Be8 {[%emt 0:01:47] [#]} 14. e3 $146 {[%emt 0:00:46]} ({Predecessor:} 14. Qb2 Nd5 15. Nb3 f6 16. Nd3 Na6 17. Qd2 a4 18. Nbc5 Nxc5 19. Rxc5 Qd6 20. Rac1 Rd8 21. Bxd5 cxd5 22. Nb4 Rf7 23. Qd3 {½-½ (23) Kishkin,S (2378)-Mende,I (2319) ICCF email 2013}) 14... Nd5 {[%emt 0:09:12]} 15. Ne4 {[%emt 0:28:13]} Qe7 {[%emt 0:05:18]} 16. Nc5 {[%emt 0:05:03]} Kh8 {[%emt 0:07:44]} 17. Ned3 {[%emt 0:02:32]} Ra7 {[%emt 0:17:16][%cal Ba8a7,Ba7d7,Bd7d8][%mdl 32]} 18. Re1 {[%emt 0:05:34]} Nd7 {[%emt 0:01:35]} 19. Nxd7 {[%emt 0:01:20]} Rxd7 {[%emt 0:03:30]} 20. Rac1 {[%emt 0:02:21][%cal Ba1c1,Bc1c5,Bc5b5,Bb5b3][%mdl 32]} Rd8 {[%emt 0:04:31]} 21. Rc5 {[%emt 0:04:53]} f6 {[%emt 0:04:17] Inhibits Ne5.} 22. Rec1 {[%emt 0:09:42]} e5 23. Bxd5 {[%emt 0:00:20]} cxd5 {[%emt 0:13:25]} 24. Qc3 {[%emt 0:05:13]} Bg6 25. Rxb5 exd4 {[%emt 0:06:28]} 26. exd4 {[%emt 0:01:36] With the idea Nc5.} Qe2 {[%emt 0:02:49] [#] Hoping for ...Be4.} 27. Rb3 {[%emt 0:01:16] Weighted Error Value: White=0.09 (flawless) /Black=0.08 (flawless)} 1/2-1/2